Workbook

Sheet fiche
A1: DOSSIER TECHNO : | B1: 90155
A2: CLIENT : | B2: AFF
A3: DOSSIER JB : | B3: 90189
A4: DATE DE DEPART : | B4: 2021-09-23
A5: REFERENCE DE LA SERIE | B5: serie 1 | C5: serie 2 | D5: serie 3 | E5: serie 4 | F5: serie 5
A9: Quantité commandée | B9: 33500 | C9: 64500 | D9: 99000 | E9: 125800 | F9: 92500
A10: Quantité par paquet | B10: 100 | C10: 100 | D10: 100 | E10: 100 | F10: 100
A11: Nombre paquets/carton | B11: 10 | C11: 10 | D11: 10 | E11: 10 | F11: 10

Sheet 32
A6: =fiche!A1 -> DOSSIER TECHNO : | B6: =fiche!B1 -> 90155 | C6: =fiche!A2 -> CLIENT : | D6: =fiche!B2 -> AFF | E6: =fiche!A3 -> DOSSIER JB : | F6: =fiche!B3 -> 90189 | G6: =fiche!A4 -> DATE DE DEPART : | H6: =fiche!B4 -> 2021-09-23 | J6: =A6 -> DOSSIER TECHNO : | K6: =B6 -> 90155 | L6: CLIENT : | M6: AFF | N6: DOSSIER JB : | O6: 90189 | P6: DATE DE DEPART : | Q6: 2021-09-23
A9: REF DE LA SERIE | B9: QUANTITE PAR PAQUETS | C9: NOMBRE DE PAQUETS AU CARTON | D9: QUANTITE PAR CARTON | E9: NOMBRE DE CARTON | F9: QUANTITE | G9: NOMBRE DE PALETTE | H9: QUANTITE TOTAL | J9: =A9 -> REF DE LA SERIE | K9: =B9 -> QUANTITE PAR PAQUETS | L9: NOMBRE DE PAQUETS AU CARTON | M9: QUANTITE PAR CARTON | N9: NOMBRE DE CARTON | O9: QUANTITE | P9: NOMBRE DE PALETTE | Q9: QUANTITE TOTAL
A10: =fiche!B5 -> serie 1 | B10: =fiche!B10 -> 100 | C10: =fiche!B11 -> 10 | D10: =IFERROR(B10*C10,"") -> 1000 | E10: =IF(fiche!B9>32*D10,32,ROUNDDOWN(fiche!B9/D10,0)) -> 32 | F10: =E10*D10 -> 32000 | G10: =IF(E10<>"",IF(E10<32,INT(1),INT(fiche!$B$9/D10/32))) -> 1 | H10: =E10*D10*G10 -> 32000 | J10: =A10 -> serie 1 | K10: =B10 -> 100 | L10: =C10 -> 10 | M10: 1000 | N10: 32 | O10: 32000 | P10: 1 | Q10: 32000
B11: =IF(MAX(H9:H10)>=fiche!$B$9,"",B10) -> 100 | C11: =IF(MAX(H10:H10)>=fiche!$B$9,"",C10) -> 10 | D11: =IFERROR(B11*C11,"") -> 1000 | E11: =IFERROR(IF((fiche!$B$9-H10)>32*D11,32,MAX(INT((fiche!$B$9-H10)/D11),1)),"") -> 1 | F11: =IFERROR(IF(E11*D11>D11,E11*D11,MAX(fiche!$B$9-H10,100)),"") -> 1500 | G11: =IF($F11="","",1) -> 1 | H11: =IF(MAX($H$9:H10)>=fiche!$B$9,"",H10+F11) -> 33500 | K11: =B11 -> 100 | L11: =IFERROR(M11/K11,"") -> 15 | M11: =IFERROR(O11/N11,"") -> 1500 | N11: 1 | O11: =IFERROR(ROUNDUP(F11,-2),"") -> 1500 | P11: 1 | Q11: 33500
B12: =IF(MAX(H10:H11)>=fiche!$B$9,"",B11) ->  | C12: =IF(MAX(H10:H11)>=fiche!$B$9,"",C11) ->  | E12: =IFERROR(IF((fiche!$B$9-H11)>32*D12,32,MAX(INT((fiche!$B$9-H11)/D12),1)),"") ->  | F12: =IFERROR(IF(E12*D12>D12,E12*D12,MAX(fiche!$B$9-H11,100)),"") ->  | G12: =IF($F12="","",1) ->  | H12: =IF(MAX($H$9:H11)>=fiche!$B$9,"",H11+F12) ->  | K12: =B12 ->  | L12: =IF(ISERROR(O12/K12),"", O12/K12) ->  | M12: =IF(ISERROR(L12*K12),"", L12*K12) ->  | N12: =E12 ->  | O12: =IFERROR(ROUNDUP(F12,-2),"") ->  | Q12: =IFERROR(ROUNDUP(H12,-2),"") -> 
A14: =fiche!C5 -> serie 2 | B14: =fiche!C10 -> 100 | C14: =fiche!C11 -> 10 | D14: =IFERROR(B14*C14,"") -> 1000 | E14: =IF(fiche!C9>32*D14,32,ROUNDDOWN(fiche!C9/D14,0)) -> 32 | F14: =E14*D14 -> 32000 | G14: =IF(E14<>"",IF(E14<32,INT(1),INT(fiche!$C$9/D14/32))) -> 2 | H14: =E14*D14*G14 -> 64000 | J14: =A14 -> serie 2 | K14: =B14 -> 100 | L14: 10 | M14: 1000 | N14: 32 | O14: 32000 | P14: 2 | Q14: 64000
B15: =IF(MAX(H14:H14)>=fiche!$C$9,"",B14) -> 100 | C15: =IF(MAX(H14:H14)>=fiche!$C$9,"",C14) -> 10 | D15: =IFERROR(B15*C15,"") -> 1000 | E15: =IFERROR(IF((fiche!$C$9-H14)>32*D15,32,MAX(INT((fiche!$C$9-H14)/D15),1)),"") -> 1 | F15: =IFERROR(IF(E15*D15>D15,E15*D15,MAX(fiche!$C$9-H14,100)),"") -> 500 | G15: =IF($F15="","",1) -> 1 | H15: =IF(MAX($H$14:H14)>=fiche!$C$9,"",H14+F15) -> 64500 | K15: =B15 -> 100 | L15: =IFERROR(M15/K15,"") -> 5 | M15: =IFERROR(O15/N15,"") -> 500 | N15: =E15 -> 1 | O15: =F15 -> 500 | P15: =G15 -> 1 | Q15: =H15 -> 64500
B16: =IF(MAX(H14:H15)>=fiche!$C$9,"",B15) ->  | C16: =IF(MAX(H14:H15)>=fiche!$C$9,"",C15) ->  | D16: =IFERROR(B16*C16,"") ->  | E16: =IFERROR(IF((fiche!$B$9-H15)>32*D16,32,MAX(INT((fiche!$B$9-H15)/D16),1)),"") ->  | F16: =IFERROR(IF(E16*D16>D16,E16*D16,MAX(fiche!$C$9-H15,100)),"") ->  | H16: =IF(MAX($H$14:H15)>=fiche!$C$9,"",H15+F16) ->  | L16: =IF(ISERROR(O16/K16),"", O16/K16) ->  | M16: =IF(ISERROR(L16*K16),"", L16*K16) ->  | O16: =IFERROR(ROUNDUP(F16,-2),"") ->  | Q16: =IFERROR(ROUNDUP(H16,-2),"") -> 
A18: =fiche!D5 -> serie 3 | B18: =fiche!D10 -> 100 | C18: =fiche!D11 -> 10 | D18: =IFERROR(B18*C18,"") -> 1000 | E18: =IF(fiche!D9>32*D18,32,ROUNDDOWN(fiche!D9/D18,0)) -> 32 | F18: =E18*D18 -> 32000 | G18: =IF(E18<>"",IF(E18<32,INT(1),INT(fiche!$D$9/D18/32))) -> 3 | H18: =E18*D18*G18 -> 96000 | J18: =A18 -> serie 3 | K18: =B18 -> 100 | L18: 10 | M18: 1000 | N18: 32 | O18: 32000 | P18: 3 | Q18: 96000
B19: =IF(MAX(H18:H18)>=fiche!$D$9,"",B18) -> 100 | C19: =IF(MAX(H18:H18)>=fiche!$D$9,"",C18) -> 10 | D19: =IFERROR(B19*C19,"") -> 1000 | E19: =IFERROR(IF((fiche!$C$9-H18)>32*D19,32,MAX(INT((fiche!$D$9-H18)/D19),1)),"") -> 3 | F19: =IFERROR(IF(E19*D19>D19,E19*D19,MAX(fiche!$C$9-H18,100)),"") -> 3000 | G19: =IF($F19="","",1) -> 1 | H19: =IF(MAX($H$18:H18)>=fiche!$D$9,"",H18+F19) -> 99000 | K19: =B19 -> 100 | L19: =IFERROR(M19/K19,"") -> 10 | M19: =IFERROR(O19/N19,"") -> 1000 | N19: =E19 -> 3 | O19: =F19 -> 3000 | P19: =G19 -> 1 | Q19: =H19 -> 99000
B20: =IF(MAX(H18:H19)>=fiche!$D$9,"",B19) ->  | C20: =IF(MAX(H18:H19)>=fiche!$D$9,"",C19) ->  | D20: =IFERROR(B20*C20,"") ->  | E20: =IFERROR(IF((fiche!$D$9-H19)>32*D20,32,MAX(INT((fiche!$D$9-H19)/D20),1)),"") ->  | F20: =IFERROR(IF(E20*D20>D20,E20*D20,MAX(fiche!$D$9-H19,100)),"") ->  | G20: =IF($F20="","",1) ->  | H20: =IF(MAX($H$18:H19)>=fiche!$D$9,"",H19+F20) ->  | L20: =IF(ISERROR(O20/K20),"", O20/K20) ->  | M20: =IF(ISERROR(L20*K20),"", L20*K20) ->  | O20: =IFERROR(ROUNDUP(F20,-2),"") ->  | Q20: =IFERROR(ROUNDUP(H20,-2),"") -> 
A22: =fiche!E5 -> serie 4 | B22: =fiche!E10 -> 100 | C22: =fiche!E11 -> 10 | D22: =IFERROR(B22*C22,"") -> 1000 | E22: =IF(fiche!E9>32*D22,32,ROUNDDOWN(fiche!E9/D22,0)) -> 32 | F22: =E22*D22 -> 32000 | G22: =IF(E22<>"",IF(E22<32,INT(1),INT(fiche!$E$9/D22/32))) -> 3 | H22: =E22*D22*G22 -> 96000 | J22: =A22 -> serie 4 | K22: =B22 -> 100 | L22: 10 | M22: 1000 | N22: 32 | O22: 32000 | P22: 3 | Q22: 96000
B23: =IF(MAX(H21:H22)>=fiche!$E$9,"",B22) -> 100 | C23: =IF(MAX(H21:H22)>=fiche!$E$9,"",C22) -> 10 | D23: =IFERROR(B23*C23,"") -> 1000 | E23: =IFERROR(IF((fiche!$E$9-H22)>32*D23,32,MAX(INT((fiche!$E$9-H22)/D23),1)),"") -> 29 | F23: =IFERROR(IF(E23*D23>D23,E23*D23,MAX(fiche!$E$9-H22,100)),"") -> 29000 | G23: =IF($F23="","",1) -> 1 | H23: =IF(MAX($H$22:H22)>=fiche!$E$9,"",H22+F23) -> 125000 | K23: =B23 -> 100 | L23: =IFERROR(M23/K23,"") -> 10 | M23: =IFERROR(O23/N23,"") -> 1000 | N23: =E23 -> 29 | O23: =F23 -> 29000 | P23: =G23 -> 1 | Q23: =H23 -> 125000
B24: =IF(MAX(H22:H23)>=fiche!$E$9,"",B23) -> 100 | C24: =IF(MAX(H22:H23)>=fiche!$E$9,"",C23) -> 10 | D24: 1000 | E24: =IFERROR(IF((fiche!$E$9-H23)>32*D24,32,MAX(INT((fiche!$E$9-H23)/D24),1)),"") -> 1 | F24: =IFERROR(IF(E24*D24>D24,E24*D24,MAX(fiche!$E$9-H23,100)),"") -> 800 | G24: =IF($F24="","",1) -> 1 | H24: =IF(MAX($H$22:H23)>=fiche!$E$9,"",H23+F24) -> 125800 | K24: 100 | L24: =IF(ISERROR(O24/K24),"", O24/K24) -> 8 | M24: =IF(ISERROR(L24*K24),"", L24*K24) -> 800 | N24: 1 | O24: =IFERROR(ROUNDUP(F24,-2),"") -> 800 | P24: 1 | Q24: =IFERROR(ROUNDUP(H24,-2),"") -> 125800
A26: =fiche!F5 -> serie 5 | B26: =fiche!F10 -> 100 | C26: =fiche!F11 -> 10 | D26: =IFERROR(B26*C26,"") -> 1000 | E26: =IF(fiche!F9>32*D26,32,ROUNDDOWN(fiche!F9/D26,0)) -> 32 | F26: =E26*D26 -> 32000 | G26: =IF(E26<>"",IF(E26<32,INT(1),INT(fiche!$F$9/D26/32))) -> 2 | H26: =E26*D26*G26 -> 64000 | J26: =A26 -> serie 5 | K26: 100 | L26: =C26 -> 10 | M26: =D26 -> 1000 | N26: 32 | O26: 32000 | P26: 2 | Q26: 64000
B27: =IF(MAX(H25:H26)>=fiche!$F$9,"",B26) -> 100 | C27: =IF(MAX(H25:H26)>=fiche!$F$9,"",C26) -> 10 | D27: =IFERROR(B27*C27,"") -> 1000 | E27: =IFERROR(IF((fiche!$F$9-H26)>32*D27,32,MAX(INT((fiche!$F$9-H26)/D27),1)),"") -> 28 | F27: =IFERROR(IF(E27*D27>D27,E27*D27,MAX(fiche!$F$9-H26,100)),"") -> 28000 | G27: =IF($F27="","",1) -> 1 | H27: =IF(MAX($H$26:H26)>=fiche!$F$9,"",H26+F27) -> 92000 | K27: 100 | L27: =IFERROR(M27/K27,"") -> 10 | M27: =IFERROR(O27/N27,"") -> 1000 | N27: 28 | O27: 28000 | P27: 1 | Q27: 92000
B28: =IF(MAX(H26:H27)>=fiche!$F$9,"",B27) -> 100 | C28: =IF(MAX(H26:H27)>=fiche!$F$9,"",C27) -> 10 | D28: 1000 | E28: =IFERROR(IF((fiche!$F$9-H27)>32*D28,32,MAX(INT((fiche!$F$9-H27)/D28),1)),"") -> 1 | F28: =IFERROR(IF(E28*D28>D28,E28*D28,MAX(fiche!$F$9-H27,100)),"") -> 500 | G28: =IF($F28="","",1) -> 1 | H28: =IF(MAX($H$26:H27)>=fiche!$F$9,"",H27+F28) -> 92500 | K28: 100 | L28: =IF(ISERROR(O28/K28),"", O28/K28) -> 5 | M28: =IF(ISERROR(L28*K28),"", L28*K28) -> 500 | N28: 1 | O28: =IFERROR(ROUNDUP(F28,-2),"") -> 500 | P28: 1 | Q28: =IFERROR(ROUNDUP(H28,-2),"") -> 92500
